[Event "*** Titled Tuesday Blitz"]
[Site "Chess.com"]
[Date "2021.04.20"]
[Round "8"]
[White "DFeco"]
[Black "LenkaPtacnikova"]
[Result "1/2-1/2"]
[WhiteElo "2300"]
[BlackElo "2179"]
[TimeControl "180+1"]
[EndTime "11:26:07 PDT"]
[Termination "Game drawn by repetition"]

1. c4 {[%clk 0:03:00.9]} 1... c5 {[%clk 0:02:57.8]} 2. g3 {[%clk 0:03:00.8]}
2... Nc6 {[%clk 0:02:56.4]} 3. Bg2 {[%clk 0:03:01.1]} 3... e6 {[%clk 0:02:56.4]}
4. Nf3 {[%clk 0:02:56.3]} 4... d5 {[%clk 0:02:56]} 5. cxd5 {[%clk 0:02:55.9]}
5... exd5 {[%clk 0:02:56]} 6. d4 {[%clk 0:02:55]} 6... Nf6 {[%clk 0:02:49]} 7.
dxc5 {[%clk 0:02:54.5]} 7... Bxc5 {[%clk 0:02:46.9]} 8. O-O {[%clk 0:02:55.1]}
8... O-O {[%clk 0:02:37.4]} 9. Bg5 {[%clk 0:02:50.8]} 9... d4 {[%clk 0:02:34.5]}
10. Nbd2 {[%clk 0:02:47.3]} 10... Re8 {[%clk 0:02:32.9]} 11. Nb3 {[%clk
0:02:44.9]} 11... Bb6 {[%clk 0:02:33]} 12. Qd2 {[%clk 0:02:32.9]} 12... h6
{[%clk 0:02:29.3]} 13. Bxf6 {[%clk 0:02:31.7]} 13... Qxf6 {[%clk 0:02:27.8]} 14.
Rfd1 {[%clk 0:02:24.8]} 14... Bg4 {[%clk 0:02:18.7]} 15. Rac1 {[%clk 0:02:18.7]}
15... Rad8 {[%clk 0:02:15.9]} 16. h3 {[%clk 0:01:59.7]} 16... Be6 {[%clk
0:02:14.5]} 17. Nc5 {[%clk 0:01:53.1]} 17... Bxa2 {[%clk 0:01:57.2]} 18. Nxb7
{[%clk 0:01:38.3]} 18... Bb3 {[%clk 0:01:57]} 19. Nxd8 {[%clk 0:01:37.2]} 19...
Rxd8 {[%clk 0:01:46.7]} 20. Ng5 {[%clk 0:01:00.2]} 20... Qxg5 {[%clk 0:01:19.4]}
21. Qxg5 {[%clk 0:00:57.8]} 21... hxg5 {[%clk 0:01:18.8]} 22. Bxc6 {[%clk
0:00:58.2]} 22... Bxd1 {[%clk 0:01:18.2]} 23. Rxd1 {[%clk 0:00:58.7]} 23... Rc8
{[%clk 0:01:13.2]} 24. Be4 {[%clk 0:00:58.1]} 24... Kf8 {[%clk 0:01:06.1]} 25.
Bd3 {[%clk 0:00:56.2]} 25... Ke7 {[%clk 0:01:03.4]} 26. Rd2 {[%clk 0:00:54]}
26... Kf6 {[%clk 0:01:00.5]} 27. Rc2 {[%clk 0:00:53.7]} 27... Rxc2 {[%clk
0:00:58.9]} 28. Bxc2 {[%clk 0:00:53.6]} 28... Ke5 {[%clk 0:00:57.4]} 29. Kg2
{[%clk 0:00:51.5]} 29... f5 {[%clk 0:00:52.8]} 30. Kf3 {[%clk 0:00:48.2]} 30...
Ba5 {[%clk 0:00:44.8]} 31. g4 {[%clk 0:00:46]} 31... f4 {[%clk 0:00:42.5]} 32.
Bb3 {[%clk 0:00:40.5]} 32... Bd2 {[%clk 0:00:40]} 33. Bg8 {[%clk 0:00:39.6]}
33... Bc1 {[%clk 0:00:37.2]} 34. b3 {[%clk 0:00:39.6]} 34... Bd2 {[%clk
0:00:36.2]} 35. Bc4 {[%clk 0:00:36.2]} 35... a5 {[%clk 0:00:35.9]} 36. Bg8
{[%clk 0:00:34.9]} 36... Bc3 {[%clk 0:00:35.8]} 37. Bc4 {[%clk 0:00:34.2]} 37...
Bd2 {[%clk 0:00:35.8]} 38. Bg8 {[%clk 0:00:33.8]} 38... Bc1 {[%clk 0:00:35.7]}
39. Bc4 {[%clk 0:00:33]} 39... Bd2 {[%clk 0:00:36.2]} 1/2-1/2

[Event "*** Titled Tuesday Blitz"]
[Site "Chess.com"]
[Date "2021.04.20"]
[Round "8"]
[White "MIJuanReyesRosa"]
[Black "tteshan"]
[Result "0-1"]
[WhiteElo "2038"]
[BlackElo "2252"]
[TimeControl "180+1"]
[EndTime "11:26:08 PDT"]
[Termination "tteshan won on time"]

1. d4 {[%clk 0:02:59.5]} 1... d5 {[%clk 0:02:59.9]} 2. c4 {[%clk 0:02:59.5]}
2... dxc4 {[%clk 0:03:00.8]} 3. e3 {[%clk 0:02:59.4]} 3... Nf6 {[%clk 0:03:00]}
4. Bxc4 {[%clk 0:02:59.3]} 4... e6 {[%clk 0:03:00.6]} 5. Nf3 {[%clk 0:02:59.3]}
5... a6 {[%clk 0:03:01.5]} 6. Bb3 {[%clk 0:02:57.1]} 6... c5 {[%clk 0:02:57]} 7.
O-O {[%clk 0:02:56.5]} 7... Nc6 {[%clk 0:02:56.3]} 8. Qe2 {[%clk 0:02:54.1]}
8... cxd4 {[%clk 0:02:55]} 9. Rd1 {[%clk 0:02:52.4]} 9... Be7 {[%clk 0:02:47.8]}
10. exd4 {[%clk 0:02:51.4]} 10... O-O {[%clk 0:02:46.1]} 11. Nc3 {[%clk
0:02:48.8]} 11... Na5 {[%clk 0:02:26.8]} 12. Bc2 {[%clk 0:02:44.7]} 12... b5
{[%clk 0:02:24.6]} 13. Ne5 {[%clk 0:02:30.4]} 13... Bb7 {[%clk 0:02:21.8]} 14.
Bg5 {[%clk 0:01:47.5]} 14... Rc8 {[%clk 0:02:03]} 15. Rac1 {[%clk 0:01:37.9]}
15... Nc4 {[%clk 0:01:55.1]} 16. Bb1 {[%clk 0:01:31.7]} 16... Nd5 {[%clk
0:01:44.2]} 17. Qh5 {[%clk 0:01:05.5]} 17... f5 {[%clk 0:01:28.6]} 18. Bxe7
{[%clk 0:00:53]} 18... Qxe7 {[%clk 0:01:26.7]} 19. Re1 {[%clk 0:00:32.8]} 19...
Nxb2 {[%clk 0:01:08.6]} 20. Nf3 {[%clk 0:00:13.6]} 20... Rxc3 {[%clk 0:00:53.6]}
21. Bxf5 {[%clk 0:00:01.6]} 21... Rxf5 {[%clk 0:00:37.3]} 22. Qxf5 {[%clk
0:00:01.3]} 22... Rxc1 {[%clk 0:00:34.6]} 0-1

[Event "*** Titled Tuesday Blitz"]
[Site "Chess.com"]
[Date "2021.04.20"]
[Round "8"]
[White "VladaSviridova"]
[Black "AthanasiusLefebvre"]
[Result "1-0"]
[WhiteElo "2265"]
[BlackElo "2037"]
[TimeControl "180+1"]
[EndTime "11:26:09 PDT"]
[Termination "VladaSviridova won on time"]

1. d4 {[%clk 0:03:00.9]} 1... d6 {[%clk 0:02:59.9]} 2. Nf3 {[%clk 0:02:59.8]}
2... g6 {[%clk 0:03:00.3]} 3. c4 {[%clk 0:03:00.2]} 3... Bg7 {[%clk 0:03:00.2]}
4. Nc3 {[%clk 0:03:00.3]} 4... f6 {[%clk 0:02:57.9]} 5. e4 {[%clk 0:02:57.8]}
5... Nh6 {[%clk 0:02:57.3]} 6. Be2 {[%clk 0:02:54.1]} 6... O-O {[%clk
0:02:49.3]} 7. O-O {[%clk 0:02:53.7]} 7... Nf7 {[%clk 0:02:44.1]} 8. d5 {[%clk
0:02:52.6]} 8... e5 {[%clk 0:02:41.6]} 9. dxe6 {[%clk 0:02:49.9]} 9... Bxe6
{[%clk 0:02:41.2]} 10. Be3 {[%clk 0:02:50]} 10... Ne5 {[%clk 0:02:29.7]} 11. Nd2
{[%clk 0:02:41]} 11... f5 {[%clk 0:02:11.8]} 12. f4 {[%clk 0:02:17.9]} 12... Ng4
{[%clk 0:02:09.2]} 13. Bxg4 {[%clk 0:02:17.3]} 13... fxg4 {[%clk 0:02:09.1]} 14.
Rc1 {[%clk 0:02:04.7]} 14... Nc6 {[%clk 0:01:54.9]} 15. Nd5 {[%clk 0:01:59.1]}
15... Ne7 {[%clk 0:01:42.9]} 16. Qc2 {[%clk 0:01:45.3]} 16... c6 {[%clk
0:01:39.4]} 17. Nxe7+ {[%clk 0:01:41.5]} 17... Qxe7 {[%clk 0:01:38.1]} 18. Rce1
{[%clk 0:01:32]} 18... Qh4 {[%clk 0:01:35.8]} 19. g3 {[%clk 0:01:27.4]} 19...
Qf6 {[%clk 0:01:25.1]} 20. Rb1 {[%clk 0:01:15.7]} 20... d5 {[%clk 0:01:07.3]}
21. e5 {[%clk 0:01:06.3]} 21... Qf5 {[%clk 0:01:07]} 22. Qc3 {[%clk 0:01:05.2]}
22... dxc4 {[%clk 0:01:01]} 23. Nxc4 {[%clk 0:01:03.7]} 23... Bd5 {[%clk
0:00:57.2]} 24. Nd6 {[%clk 0:01:00.2]} 24... Qh5 {[%clk 0:00:52.6]} 25. Rbd1
{[%clk 0:00:46.6]} 25... Qh3 {[%clk 0:00:44]} 26. Rxd5 {[%clk 0:00:44.7]} 26...
cxd5 {[%clk 0:00:43.7]} 27. Qb3 {[%clk 0:00:44.6]} 27... Kh8 {[%clk 0:00:03.4]}
28. Qxd5 {[%clk 0:00:43.7]} 1-0

[Event "*** Titled Tuesday Blitz"]
[Site "Chess.com"]
[Date "2021.04.20"]
[Round "8"]
[White "AlexTriapishko"]
[Black "Oleksandr_Bortnyk"]
[Result "0-1"]
[WhiteElo "2896"]
[BlackElo "2955"]
[TimeControl "180+1"]
[EndTime "11:26:10 PDT"]
[Termination "Oleksandr_Bortnyk won on time"]

1. Nf3 {[%clk 0:03:00.7]} 1... Nf6 {[%clk 0:02:59.4]} 2. g3 {[%clk 0:03:00.9]}
2... d6 {[%clk 0:02:57.7]} 3. d4 {[%clk 0:03:00.9]} 3... g6 {[%clk 0:02:58.6]}
4. Bg2 {[%clk 0:03:00.7]} 4... Bg7 {[%clk 0:02:59.2]} 5. b3 {[%clk 0:03:01.4]}
5... O-O {[%clk 0:02:59.7]} 6. Bb2 {[%clk 0:03:01.5]} 6... Bf5 {[%clk
0:03:00.3]} 7. O-O {[%clk 0:03:01.2]} 7... c6 {[%clk 0:03:01]} 8. c4 {[%clk
0:03:00.6]} 8... Qd7 {[%clk 0:02:54.1]} 9. Re1 {[%clk 0:02:57.6]} 9... a5 {[%clk
0:02:52.9]} 10. Nc3 {[%clk 0:02:57.1]} 10... Ne4 {[%clk 0:02:52.7]} 11. Rc1
{[%clk 0:02:41.2]} 11... Nxc3 {[%clk 0:02:51]} 12. Bxc3 {[%clk 0:02:41.4]} 12...
Be4 {[%clk 0:02:51]} 13. e3 {[%clk 0:02:33.4]} 13... d5 {[%clk 0:02:47.9]} 14.
Qe2 {[%clk 0:02:09]} 14... a4 {[%clk 0:02:45.8]} 15. b4 {[%clk 0:02:03.6]} 15...
a3 {[%clk 0:02:41.7]} 16. b5 {[%clk 0:01:32.1]} 16... dxc4 {[%clk 0:02:09.5]}
17. Ne5 {[%clk 0:01:22]} 17... Qd5 {[%clk 0:02:09.6]} 18. f3 {[%clk 0:01:08.5]}
18... Bd3 {[%clk 0:02:08.7]} 19. Nxd3 {[%clk 0:00:37.6]} 19... cxd3 {[%clk
0:02:09.6]} 20. Qxd3 {[%clk 0:00:37.4]} 20... Qxa2 {[%clk 0:02:06.8]} 21. Ra1
{[%clk 0:00:34.2]} 21... Qd5 {[%clk 0:02:02.1]} 22. f4 {[%clk 0:00:29.3]} 22...
Qxb5 {[%clk 0:01:59.5]} 23. Qxb5 {[%clk 0:00:29.7]} 23... cxb5 {[%clk
0:02:00.4]} 24. Bb4 {[%clk 0:00:21.1]} 24... a2 {[%clk 0:02:00]} 25. Bxb7 {[%clk
0:00:18.4]} 25... Ra4 {[%clk 0:01:57.2]} 26. Bxe7 {[%clk 0:00:17.5]} 26... Re8
{[%clk 0:01:55.8]} 27. Bc5 {[%clk 0:00:10.8]} 27... Na6 {[%clk 0:01:17.1]} 28.
Bc6 {[%clk 0:00:08.7]} 28... Rb8 {[%clk 0:01:13.1]} 29. Bd6 {[%clk 0:00:01.7]}
29... Rb6 {[%clk 0:01:09.9]} 30. Rec1 {[%clk 0:00:02.3]} 30... Rxd4 {[%clk
0:01:03.5]} 31. exd4 {[%clk 0:00:02.3]} 31... Bxd4+ {[%clk 0:01:04.4]} 32. Kg2
{[%clk 0:00:02.1]} 32... Bxa1 {[%clk 0:01:05.3]} 33. Rxa1 {[%clk 0:00:02.5]}
33... Rxc6 {[%clk 0:01:05.5]} 34. Be5 {[%clk 0:00:02.6]} 34... Rc2+ {[%clk
0:01:05.7]} 35. Kf3 {[%clk 0:00:02.7]} 35... Nc5 {[%clk 0:01:04.7]} 36. Rd1
{[%clk 0:00:01.1]} 36... f6 {[%clk 0:01:01.9]} 37. Bxf6 {[%clk 0:00:01.5]} 37...
Kf7 {[%clk 0:01:01.9]} 38. Be5 {[%clk 0:00:01.7]} 38... b4 {[%clk 0:01:02.3]}
0-1

[Event "*** Titled Tuesday Blitz"]
[Site "Chess.com"]
[Date "2021.04.20"]
[Round "8"]
[White "yonaltimur"]
[Black "kinga2008"]
[Result "1/2-1/2"]
[WhiteElo "1758"]
[BlackElo "2181"]
[TimeControl "180+1"]
[EndTime "11:26:11 PDT"]
[Termination "Game drawn by repetition"]

1. e4 {[%clk 0:03:00]} 1... c5 {[%clk 0:02:55.5]} 2. Nf3 {[%clk 0:02:59.9]} 2...
Nc6 {[%clk 0:02:54.4]} 3. Bb5 {[%clk 0:03:00.2]} 3... e6 {[%clk 0:02:53.6]} 4.
Bxc6 {[%clk 0:03:00.2]} 4... bxc6 {[%clk 0:02:50.1]} 5. c4 {[%clk 0:02:58.6]}
5... g6 {[%clk 0:02:50.4]} 6. O-O {[%clk 0:02:57.9]} 6... Bg7 {[%clk 0:02:51.3]}
7. d3 {[%clk 0:02:57.8]} 7... Ne7 {[%clk 0:02:52.2]} 8. Nc3 {[%clk 0:02:57.8]}
8... O-O {[%clk 0:02:53.1]} 9. e5 {[%clk 0:02:57.5]} 9... f5 {[%clk 0:02:54]}
10. exf6 {[%clk 0:02:56.8]} 10... Bxf6 {[%clk 0:02:54.4]} 11. Be3 {[%clk
0:02:55.4]} 11... d6 {[%clk 0:02:54.5]} 12. Qc2 {[%clk 0:02:53]} 12... Rb8
{[%clk 0:02:53.1]} 13. Bg5 {[%clk 0:02:52.4]} 13... Bxg5 {[%clk 0:02:51.6]} 14.
Nxg5 {[%clk 0:02:52.1]} 14... Nf5 {[%clk 0:02:52.5]} 15. Nge4 {[%clk 0:02:51.8]}
15... Nd4 {[%clk 0:02:51.6]} 16. Qd2 {[%clk 0:02:52]} 16... Qb6 {[%clk
0:02:47.5]} 17. b3 {[%clk 0:02:50.8]} 17... d5 {[%clk 0:02:45.2]} 18. Ng5 {[%clk
0:02:42]} 18... h6 {[%clk 0:02:30.8]} 19. Nh3 {[%clk 0:02:37.1]} 19... g5 {[%clk
0:02:28.9]} 20. Nxg5 {[%clk 0:02:35.5]} 20... hxg5 {[%clk 0:02:27]} 21. Qxg5+
{[%clk 0:02:34.8]} 21... Kf7 {[%clk 0:02:26.2]} 22. Na4 {[%clk 0:02:26]} 22...
Rg8 {[%clk 0:02:20]} 23. Qf4+ {[%clk 0:02:23.4]} 23... Ke8 {[%clk 0:02:19]} 24.
Nxb6 {[%clk 0:02:21.9]} 24... Ne2+ {[%clk 0:02:17.2]} 25. Kh1 {[%clk 0:02:16.8]}
25... Nxf4 {[%clk 0:02:16.3]} 26. Nxc8 {[%clk 0:01:59.7]} 26... Rxc8 {[%clk
0:02:14.4]} 27. cxd5 {[%clk 0:02:00.1]} 27... cxd5 {[%clk 0:02:13.3]} 28. Rad1
{[%clk 0:01:54.8]} 28... Kd7 {[%clk 0:02:11.9]} 29. g3 {[%clk 0:01:54]} 29...
Nh3 {[%clk 0:02:10.3]} 30. f4 {[%clk 0:01:53.2]} 30... Rcf8 {[%clk 0:02:07]} 31.
Rd2 {[%clk 0:01:53.2]} 31... e5 {[%clk 0:02:06.1]} 32. f5 {[%clk 0:01:51.6]}
32... Rg5 {[%clk 0:02:04.2]} 33. f6 {[%clk 0:01:51.3]} 33... Rg6 {[%clk
0:02:03.8]} 34. Kg2 {[%clk 0:01:51.8]} 34... Nf4+ {[%clk 0:02:03.1]} 35. Kh1
{[%clk 0:01:48.6]} 35... Ne6 {[%clk 0:02:00.7]} 36. Rdf2 {[%clk 0:01:43.9]}
36... Ng5 {[%clk 0:01:48.9]} 37. h4 {[%clk 0:01:40.9]} 37... Nh7 {[%clk
0:01:46.3]} 38. Kh2 {[%clk 0:01:37.1]} 38... Rgxf6 {[%clk 0:01:45.2]} 39. Rxf6
{[%clk 0:01:33.9]} 39... Rxf6 {[%clk 0:01:46.1]} 40. Rxf6 {[%clk 0:01:33.3]}
40... Nxf6 {[%clk 0:01:44.5]} 41. Kh3 {[%clk 0:01:33.4]} 41... e4 {[%clk
0:01:45.4]} 42. dxe4 {[%clk 0:01:30.5]} 42... dxe4 {[%clk 0:01:46.3]} 43. g4
{[%clk 0:01:29.8]} 43... Kd6 {[%clk 0:01:47]} 44. g5 {[%clk 0:01:17.8]} 44... e3
{[%clk 0:01:41.3]} 45. Kg3 {[%clk 0:01:12.9]} 45... Nh5+ {[%clk 0:01:35]} 46.
Kf3 {[%clk 0:01:11.4]} 46... Ng7 {[%clk 0:01:35.4]} 47. Kxe3 {[%clk 0:01:10.7]}
47... Nf5+ {[%clk 0:01:35.9]} 48. Kf4 {[%clk 0:01:09.7]} 48... Nxh4 {[%clk
0:01:36.8]} 49. Kg4 {[%clk 0:01:10.3]} 49... Ng6 {[%clk 0:01:36.7]} 50. Kh5
{[%clk 0:01:10.8]} 50... Ne7 {[%clk 0:01:34.3]} 51. Kh6 {[%clk 0:01:05.6]} 51...
Kd5 {[%clk 0:01:32.8]} 52. Kg7 {[%clk 0:01:05.9]} 52... Kd4 {[%clk 0:01:33.3]}
53. Kf6 {[%clk 0:01:06]} 53... Nd5+ {[%clk 0:01:32.7]} 54. Kf7 {[%clk
0:01:04.4]} 54... Nf4 {[%clk 0:01:32.4]} 55. Kf6 {[%clk 0:01:01.8]} 55... Kc3
{[%clk 0:01:31.2]} 56. Kf5 {[%clk 0:01:02.2]} 56... Nh5 {[%clk 0:01:30.5]} 57.
g6 {[%clk 0:01:01.1]} 57... Kb2 {[%clk 0:01:23.5]} 58. Kg5 {[%clk 0:01:00.8]}
58... Ng7 {[%clk 0:01:23.7]} 59. Kf6 {[%clk 0:01:00.4]} 59... Nh5+ {[%clk
0:01:23.6]} 60. Kg5 {[%clk 0:01:00.1]} 60... Ng7 {[%clk 0:01:23.9]} 61. Kf6
{[%clk 0:00:59.7]} 61... Ne8+ {[%clk 0:01:24.5]} 62. Ke7 {[%clk 0:00:58.4]}
62... Ng7 {[%clk 0:01:10]} 63. Kf6 {[%clk 0:00:56.8]} 1/2-1/2

[Event "*** Titled Tuesday Blitz"]
[Site "Chess.com"]
[Date "2021.04.20"]
[Round "8"]
[White "ri4mi"]
[Black "Sanyura"]
[Result "0-1"]
[WhiteElo "2349"]
[BlackElo "2585"]
[TimeControl "180+1"]
[EndTime "11:26:13 PDT"]
[Termination "Sanyura won on time"]

1. e4 {[%clk 0:03:00.9]} 1... c5 {[%clk 0:02:58.3]} 2. Nc3 {[%clk 0:03:00.8]}
2... e6 {[%clk 0:02:59.2]} 3. Nf3 {[%clk 0:02:59.7]} 3... Nc6 {[%clk 0:02:59.3]}
4. d4 {[%clk 0:02:59.9]} 4... cxd4 {[%clk 0:03:00.2]} 5. Nxd4 {[%clk 0:03:00.5]}
5... Nf6 {[%clk 0:03:00.9]} 6. Nxc6 {[%clk 0:03:00.8]} 6... bxc6 {[%clk
0:03:01.8]} 7. e5 {[%clk 0:03:01.7]} 7... Nd5 {[%clk 0:03:02.4]} 8. Ne4 {[%clk
0:03:02.1]} 8... Qc7 {[%clk 0:03:03.2]} 9. f4 {[%clk 0:03:02.2]} 9... Qb6 {[%clk
0:03:03.9]} 10. c4 {[%clk 0:03:02]} 10... Bb4+ {[%clk 0:03:04.6]} 11. Ke2 {[%clk
0:03:01.6]} 11... f5 {[%clk 0:03:05.2]} 12. Nf2 {[%clk 0:02:50.2]} 12... Ne7
{[%clk 0:03:05.3]} 13. Be3 {[%clk 0:02:41.4]} 13... Bc5 {[%clk 0:03:05.4]} 14.
Bxc5 {[%clk 0:02:40.9]} 14... Qxc5 {[%clk 0:03:06.3]} 15. Kf3 {[%clk 0:02:39.2]}
15... Qb6 {[%clk 0:03:05.7]} 16. Qd6 {[%clk 0:01:55.1]} 16... g5 {[%clk
0:02:51.7]} 17. fxg5 {[%clk 0:01:38.7]} 17... Qxb2 {[%clk 0:02:48]} 18. Bd3
{[%clk 0:01:35.1]} 18... Ng6 {[%clk 0:02:46.2]} 19. Rhe1 {[%clk 0:01:30.1]}
19... Qd2 {[%clk 0:02:33.2]} 20. g3 {[%clk 0:01:06.8]} 20... c5 {[%clk
0:02:32.6]} 21. Rab1 {[%clk 0:00:55]} 21... Qxg5 {[%clk 0:01:44]} 22. Qxc5
{[%clk 0:00:44.5]} 22... h5 {[%clk 0:01:39.9]} 23. h4 {[%clk 0:00:37.2]} 23...
Qh6 {[%clk 0:01:16]} 24. Nh3 {[%clk 0:00:24.1]} 24... Qd2 {[%clk 0:01:15.4]} 25.
Nf2 {[%clk 0:00:11.7]} 25... Bb7+ {[%clk 0:01:10.3]} 26. Rxb7 {[%clk 0:00:10.9]}
26... Qxe1 {[%clk 0:01:10.5]} 27. Qd6 {[%clk 0:00:09.7]} 27... Rd8 {[%clk
0:01:04.9]} 28. Kg2 {[%clk 0:00:10]} 28... Qxe5 {[%clk 0:01:04]} 29. Qc7 {[%clk
0:00:09]} 29... Rg8 {[%clk 0:01:02.5]} 30. Rxa7 {[%clk 0:00:02.9]} 30... Nf4+
{[%clk 0:00:55.6]} 31. Kf1 {[%clk 0:00:02.6]} 31... Qa1+ {[%clk 0:00:48.3]} 0-1

[Event "*** Titled Tuesday Blitz"]
[Site "Chess.com"]
[Date "2021.04.20"]
[Round "8"]
[White "MrChampion_Coach"]
[Black "BigAl"]
[Result "0-1"]
[WhiteElo "2419"]
[BlackElo "2591"]
[TimeControl "180+1"]
[EndTime "11:26:16 PDT"]
[Termination "BigAl won on time"]

1. d4 {[%clk 0:03:00.9]} 1... Nf6 {[%clk 0:02:59.5]} 2. c4 {[%clk 0:03:00.2]}
2... g6 {[%clk 0:02:59.9]} 3. Nc3 {[%clk 0:02:59.7]} 3... Bg7 {[%clk 0:03:00.8]}
4. e4 {[%clk 0:02:59]} 4... O-O {[%clk 0:03:01.7]} 5. h3 {[%clk 0:02:55.9]} 5...
d6 {[%clk 0:03:02]} 6. Be3 {[%clk 0:02:55.3]} 6... c5 {[%clk 0:02:58.4]} 7. d5
{[%clk 0:02:53.1]} 7... e6 {[%clk 0:02:48]} 8. Nf3 {[%clk 0:02:52.3]} 8... exd5
{[%clk 0:02:44.8]} 9. exd5 {[%clk 0:02:53.2]} 9... Re8 {[%clk 0:02:44.5]} 10.
Bd3 {[%clk 0:02:47.7]} 10... a6 {[%clk 0:02:44.2]} 11. O-O {[%clk 0:02:46.3]}
11... Nbd7 {[%clk 0:02:38.3]} 12. Re1 {[%clk 0:02:41.1]} 12... b5 {[%clk
0:02:26]} 13. cxb5 {[%clk 0:02:38.3]} 13... axb5 {[%clk 0:02:26.3]} 14. Bxb5
{[%clk 0:02:38.2]} 14... Ba6 {[%clk 0:02:23.9]} 15. Bc6 {[%clk 0:02:37.4]} 15...
Rb8 {[%clk 0:02:23.4]} 16. Qa4 {[%clk 0:02:32]} 16... Bd3 {[%clk 0:02:01.2]} 17.
Bg5 {[%clk 0:02:25.7]} 17... Rb4 {[%clk 0:02:00.7]} 18. Bxf6 {[%clk 0:01:46.8]}
18... Rxe1+ {[%clk 0:01:54.2]} 19. Nxe1 {[%clk 0:01:41.4]} 19... Nxf6 {[%clk
0:01:49.9]} 20. Qa7 {[%clk 0:01:20.2]} 20... Bf5 {[%clk 0:01:35.4]} 21. Nf3
{[%clk 0:01:10.4]} 21... Ne4 {[%clk 0:01:22.8]} 22. Re1 {[%clk 0:01:01.7]} 22...
h6 {[%clk 0:01:01.6]} 23. a3 {[%clk 0:00:50.8]} 23... Bxc3 {[%clk 0:00:47.9]}
24. bxc3 {[%clk 0:00:41.7]} 24... Rb2 {[%clk 0:00:47.8]} 25. g4 {[%clk
0:00:25.1]} 25... Rxf2 {[%clk 0:00:35]} 26. Nh2 {[%clk 0:00:02.7]} 26... Qh4
{[%clk 0:00:29.2]} 0-1

[Event "*** Titled Tuesday Blitz"]
[Site "Chess.com"]
[Date "2021.04.20"]
[Round "8"]
[White "TimofeevAr"]
[Black "deribas12345"]
[Result "1-0"]
[WhiteElo "2812"]
[BlackElo "2538"]
[TimeControl "180+1"]
[EndTime "11:26:17 PDT"]
[Termination "TimofeevAr won by resignation"]

1. c4 {[%clk 0:03:00.9]} 1... c5 {[%clk 0:02:59.3]} 2. Nf3 {[%clk 0:02:57.4]}
2... Nf6 {[%clk 0:02:59.3]} 3. Nc3 {[%clk 0:02:56.7]} 3... d5 {[%clk 0:02:59.1]}
4. cxd5 {[%clk 0:02:56.2]} 4... Nxd5 {[%clk 0:03:00]} 5. Qa4+ {[%clk 0:02:56.5]}
5... Nc6 {[%clk 0:02:59.3]} 6. Ne5 {[%clk 0:02:56.2]} 6... Nxc3 {[%clk
0:02:55.7]} 7. dxc3 {[%clk 0:02:55.7]} 7... Qc7 {[%clk 0:02:52.7]} 8. Bf4 {[%clk
0:02:50.7]} 8... Bd7 {[%clk 0:02:40.5]} 9. Nxd7 {[%clk 0:02:49.2]} 9... Qxd7
{[%clk 0:02:40.7]} 10. Rd1 {[%clk 0:02:48.2]} 10... Qc8 {[%clk 0:02:31.6]} 11.
e3 {[%clk 0:02:47.6]} 11... a6 {[%clk 0:02:25.5]} 12. Be2 {[%clk 0:02:45.6]}
12... e6 {[%clk 0:02:25.4]} 13. Bf3 {[%clk 0:02:45.3]} 13... Be7 {[%clk
0:02:23.3]} 14. Bxc6+ {[%clk 0:02:44.3]} 14... bxc6 {[%clk 0:02:23.2]} 15. Bd6
{[%clk 0:02:41.8]} 15... Qb7 {[%clk 0:02:11.7]} 16. Bxe7 {[%clk 0:02:30.3]}
16... Kxe7 {[%clk 0:02:11.4]} 17. O-O {[%clk 0:02:27.2]} 17... Rad8 {[%clk
0:01:43.1]} 18. Qh4+ {[%clk 0:02:23.2]} 18... f6 {[%clk 0:01:43]} 19. Rxd8
{[%clk 0:02:22.7]} 19... Kxd8 {[%clk 0:01:42.8]} 20. b3 {[%clk 0:02:21.8]} 20...
Qd7 {[%clk 0:01:39.4]} 21. Qc4 {[%clk 0:02:20.8]} 21... Ke7 {[%clk 0:01:33.1]}
22. Qxc5+ {[%clk 0:02:20.5]} 22... Kf7 {[%clk 0:01:33.3]} 23. Qc4 {[%clk
0:02:18.7]} 23... a5 {[%clk 0:01:22.2]} 24. h3 {[%clk 0:02:18.7]} 24... Rd8
{[%clk 0:01:21]} 25. a4 {[%clk 0:02:14.8]} 25... Qd5 {[%clk 0:01:15.9]} 26. Qxd5
{[%clk 0:02:14.6]} 26... Rxd5 {[%clk 0:01:15.6]} 27. b4 {[%clk 0:02:09.2]} 27...
Ke7 {[%clk 0:00:56.3]} 28. Rb1 {[%clk 0:02:05.6]} 28... Kd7 {[%clk 0:00:50.2]}
29. c4 {[%clk 0:02:03.7]} 29... Rd2 {[%clk 0:00:47.1]} 30. bxa5 {[%clk
0:02:03.5]} 30... Ra2 {[%clk 0:00:40.5]} 31. Rb7+ {[%clk 0:02:02.1]} 31... Kd6
{[%clk 0:00:40.7]} 32. Rxg7 {[%clk 0:02:02]} 32... Rxa4 {[%clk 0:00:40.8]} 33.
Rxh7 {[%clk 0:02:02.3]} 33... Rxa5 {[%clk 0:00:41.2]} 34. Rh4 {[%clk 0:01:50.8]}
34... e5 {[%clk 0:00:33.3]} 35. Rg4 {[%clk 0:01:42.1]} 35... Ra1+ {[%clk
0:00:20.4]} 36. Kh2 {[%clk 0:01:41.9]} 36... Rc1 {[%clk 0:00:21.3]} 37. h4
{[%clk 0:01:39.9]} 37... f5 {[%clk 0:00:21]} 38. Rg6+ {[%clk 0:01:38.1]} 38...
Kc5 {[%clk 0:00:21.1]} 39. h5 {[%clk 0:01:37.5]} 39... Rxc4 {[%clk 0:00:21.2]}
40. g3 {[%clk 0:01:33]} 40... Ra4 {[%clk 0:00:17]} 41. h6 {[%clk 0:01:32.6]}
41... Ra8 {[%clk 0:00:17.1]} 42. e4 {[%clk 0:01:23.1]} 42... fxe4 {[%clk
0:00:12.1]} 43. g4 {[%clk 0:01:23.3]} 43... Kd5 {[%clk 0:00:11.6]} 44. g5 {[%clk
0:01:22.2]} 44... c5 {[%clk 0:00:12.1]} 45. h7 {[%clk 0:01:17]} 45... Rh8 {[%clk
0:00:11.3]} 46. Rh6 {[%clk 0:01:17.3]} 46... c4 {[%clk 0:00:11.9]} 47. g6 {[%clk
0:01:17.6]} 47... c3 {[%clk 0:00:12.4]} 48. g7 {[%clk 0:01:17.9]} 1-0